fUST/lending_fUST_20240628
["ID","MTS","AMOUNT","RATE_DAILY","PERIOD"]
[330535125,1719560846103,-834.9870439,0.00034634,4]
[330535126,1719560854251,-465.979049,0.00034634,4]
[330535160,1719561032544,-3070.0,0.00030955,7]
[330535172,1719561038590,-501.50525505,0.00030955,7]
[330535174,1719561040714,-15008.02044412,0.00030955,7]
[330535175,1719561040723,-2124.31454783,0.00034634,4]
[330535176,1719561040732,-153.0,0.00035421,2]
[330535177,1719561040741,-416.76819988,0.00035581,7]
[330535178,1719561040750,-171.324463,0.00035582,2]
[330535179,1719561040759,-237.09393214,0.00035616,30]
[330535180,1719561040769,-159.50123808,0.00036147,7]
[330535181,1719561040778,-154.80649189,0.00037,4]
[330535182,1719561040786,-1489.67052162,0.00037259,4]
[330535183,1719561040795,-1489.67052162,0.00037259,4]
[330535184,1719561040804,-200.376697,0.00037534,2]
[330535185,1719561040813,-772.0,0.00037743,2]
[330535186,1719561040829,-996.12400753,0.00037899,4]
[330535187,1719561040838,-158.10106376,0.00037941,7]
[330535188,1719561040847,-1000.0,0.00038,30]
[330535189,1719561040856,-163.2477609,0.00038229,4]
[330535190,1719561040867,-248.12059694,0.00038344,4]
[330535191,1719561040876,-307.38,0.00038344,3]
[330535192,1719561040884,-378.85,0.00038344,3]
[330535193,1719561040893,-1612.78388011,0.00038346,4]
[330535194,1719561040903,-4852.56756769,0.00038354,7]
[330535195,1719561040911,-2451.84315441,0.00038354,7]
[330540036,1719561096794,190.5232,0.00027315,30]
[330543069,1719561128151,291.5259953,0.00027315,2]
[330552001,1719562028137,-771.60657346,0.00015346,2]
[330552002,1719562044164,-21.20989874,0.00015346,2]
[330552003,1719562044185,-1634.4477619,0.0001585,2]
[330552004,1719562044205,-276.78274469,0.00016154,2]
[330552005,1719562051093,-302.24601112,0.00016154,2]
[330552006,1719562101328,-300.0,0.00015345,2]
[330552007,1719562101356,-300.0,0.00015345,2]
[330552008,1719562101384,-28.02765844,0.00015346,2]
[330552009,1719562101424,-628.02765844,0.00015346,2]
[330552010,1719562152994,-300.0,0.00015345,2]
[330552011,1719562153015,-300.0,0.00015345,2]
[330552012,1719562153036,-263.71935446,0.00016154,2]
[330552013,1719562153059,-155.00269854,0.00016154,2]
[330552014,1719562153079,-154.80649189,0.00016154,2]
[330552015,1719562153100,-4692.69538285,0.00016154,2]
[330552016,1719562153120,-155.06815495,0.00016154,2]
[330552017,1719562153141,-2099.6884772,0.00016154,2]
[330552018,1719562153165,-5036.91508975,0.00016154,2]
[330552019,1719562153188,-154.80649189,0.00016154,2]
[330552020,1719562153211,-3827.24381206,0.00016179,2]
[330552021,1719562153232,-26069.57075142,0.00016255,2]
[330552022,1719562153253,-42201.76063344,0.00016255,2]
[330552023,1719562153273,-26976.8490044,0.00016279,2]
[330552024,1719562153293,-316.7339622,0.00016595,2]
[330552025,1719562153314,-420.0,0.00016788,2]
[330552026,1719562153336,-420.0,0.0001688,2]
[330552027,1719562153356,-3000.0,0.00017899,2]
[330552028,1719562153376,-1183.010152,0.00018176,2]
[330552029,1719562153396,-587.0,0.00018368,2]
[330552030,1719562153415,-587.0,0.00018567,2]
[330552031,1719562153437,-1487.2316115,0.00018601,2]
[330552032,1719562153458,-743.94144234,0.00018798,2]
[330552033,1719562153484,-12242.273365,0.000189,2]
[330552034,1719562153505,-3827.24381206,0.00018925,2]
[330552035,1719562153526,-500.0,0.00019178,2]
[330552036,1719562153550,-568.21389107,0.00019178,2]
[330552037,1719562153571,-500.0,0.00019178,2]
[330552038,1719562153591,-604.60125796,0.00019178,2]
[330552039,1719562153612,-163.751651,0.00019178,2]
[330552040,1719562153633,-817.0,0.00020095,2]
[330552041,1719562153656,-12242.273365,0.000203,2]
[330552042,1719562153683,-191.098995,0.0002031,2]
[330552043,1719562153705,-191.098995,0.0002031,2]
[330552044,1719562153727,-811.893677,0.0002031,2]
[330552045,1719562153751,-811.893677,0.0002031,2]
[330552046,1719562153780,-151.0,0.0002031,2]
[330552047,1719562153803,-151.0,0.0002031,2]
[330552048,1719562153826,-24900.0,0.00020311,2]
[330552049,1719562153848,-250.0,0.00020387,2]
[330552050,1719562153871,-823.0,0.00020424,2]
[330552051,1719562153893,-158.490022,0.00021096,2]
[330552052,1719562153915,-165.07547,0.00021096,2]
[330552053,1719562153940,-853.1929474,0.00021619,2]
[330552054,1719562153964,-3827.24381206,0.00021672,2]
[330552055,1719562153986,-166.666666,0.00021918,2]
[330552056,1719562154007,-308.5450188,0.00022173,2]
[330552057,1719562154029,-664.0,0.00022467,2]
[330552058,1719562154050,-1000.0,0.00023915,2]
[330552059,1719562154072,-3827.24381206,0.00024418,2]
[330552060,1719562154092,-166.666666,0.00024482,2]
[330552061,1719562154114,-1000.0,0.00025285,2]
[330552062,1719562154135,-191.098995,0.00025491,7]
[330552063,1719562154160,-191.098995,0.00025491,7]
[330552064,1719562154185,-12242.273365,0.00025491,2]
[330552065,1719562154206,-191.098995,0.00025501,7]
[330552066,1719562154228,-191.098995,0.00025501,7]
[330552067,1719562154250,-192.067704,0.00025501,7]
[330552068,1719562154271,-811.893677,0.00025501,7]
[330552069,1719562154293,-626.68111332,0.00025501,7]
[330552070,1719562154324,-185.21256368,0.00025501,7]
[330552071,1719562154346,-151.0,0.00025501,7]
[330552072,1719562154368,-151.0,0.00025501,7]
[330552073,1719562154390,-30000.0,0.00025501,2]
[330552074,1719562154410,-2124.49069545,0.00025501,2]
[330552075,1719562154432,-150.0,0.00025692,2]
[330552076,1719562154454,-201.6118725,0.00025692,2]
[330552077,1719562154477,-250.0,0.0002624,2]
[330552078,1719562154498,-941.01347285,0.0002657,2]
[330552079,1719562154517,-524.67444519,0.00026574,2]
[330552080,1719562154537,-350.0,0.00026788,2]
[330552081,1719562154557,-163.738245,0.00027112,2]
[330552082,1719562154578,-3827.24381206,0.00027164,2]
[330552083,1719562154599,-17233.83045592,0.00027184,2]
[330552084,1719562154619,-191.098995,0.00027195,7]
[330552085,1719562154639,-191.098995,0.00027195,7]
[330552086,1719562154660,-8953.41184481,0.00027214,2]
[330552087,1719562154682,-1183.010152,0.00027264,2]
[330552088,1719562154703,-191.098995,0.00027305,7]
[330552089,1719562154723,-191.098995,0.00027305,7]
[330552090,1719562154744,-811.893677,0.00027305,7]
[330552091,1719562154765,-811.893677,0.00027305,7]
[330552092,1719562154787,-195.222394,0.00027305,7]
[330552093,1719562154806,-151.0,0.00027305,7]
[330552094,1719562154826,-151.0,0.00027315,7]
[330552095,1719562154848,-151.0,0.00027315,7]
[330552096,1719562154868,-450.0,0.00027336,2]
[330552097,1719562154888,-678.03503506,0.00027883,2]
[330552098,1719562154909,-12242.273365,0.00027989,3]
[330552099,1719562155058,-811.893677,0.00027999,7]
[330552100,1719562155078,-811.893677,0.00027999,7]
[330552101,1719562155098,-151.0,0.00027999,7]
[330552102,1719562155119,-154.38291303,0.00028762,2]
[330552103,1719562155140,-191.098995,0.00028845,7]
[330552104,1719562155166,-191.098995,0.00028845,7]
[330552105,1719562155196,-154.38291303,0.00028982,2]
[330552106,1719562155224,-156.11060049,0.00029592,2]
[330552107,1719562155252,-150.73973492,0.00029793,2]
[330552108,1719562155274,-151.0,0.00029803,7]
[330552109,1719562155299,-243.607916,0.00029803,7]
[330552110,1719562155322,-1313.69980883,0.00029861,2]
[330552111,1719562155344,-8371.77061659,0.00029879,2]
[330552112,1719562155368,-566.05938198,0.00029901,2]
[330552113,1719562155389,-909.47482687,0.00029901,30]
[330552114,1719562155410,-2417.34559194,0.00029903,2]
[330552115,1719562155433,-2115.26284951,0.00029903,2]
[330552116,1719562155454,-401.85436649,0.00029903,2]
[330552117,1719562155479,-723.78639686,0.00029904,2]
[330552118,1719562155502,-459.0,0.00029904,2]
[330552119,1719562155524,-155.55336891,0.00029904,2]
[330552120,1719562155547,-6976.32251601,0.00029904,2]
[330552121,1719562155570,-154.80649189,0.00029904,2]
[330552122,1719562155592,-191.098995,0.00029979,7]
[330552123,1719562155613,-191.098995,0.00029979,7]
[330552124,1719562155635,-457.70686546,0.00029979,2]
[330552125,1719562155658,-1483.8452978,0.00029979,2]
[330552126,1719562155681,-210.47572087,0.00029979,2]
[330552127,1719562155702,-269.28274629,0.00029999,2]
[330552128,1719562155722,-350.27234437,0.00029999,2]
[330552129,1719562155743,-411.51221311,0.00029999,2]
[330552130,1719562155764,-811.893677,0.00029999,7]
[330552131,1719562155784,-811.893677,0.00029999,7]
[330552132,1719562155805,-155.42843744,0.00029999,2]
[330552133,1719562155825,-151.0,0.00029999,7]
[330552134,1719562155850,-470.72066901,0.0003,4]
[330552135,1719562155871,-384.63702763,0.0003,30]
[330552136,1719562155892,-155.03478297,0.0003,4]
[330552137,1719562155913,-156.11060049,0.00030003,7]
[330552138,1719562155936,-158.490022,0.00030011,2]
[330552139,1719562155958,-154.38291303,0.00030518,7]
[330552140,1719562156019,7393.16959714,0.00016154,2]
[330552141,1719562156128,505.29653704,0.00016154,2]
[330552142,1719562160458,174.21492898,0.00025899,2]
[330552143,1719562168294,4402.412339,0.00018601,2]
[330552144,1719562191559,6976.32251601,0.00018601,2]
[330552145,1719562192799,401.45069199,0.00018601,2]
[330552146,1719562197439,155.0,0.00022022,2]
[330552147,1719562201511,278.28382731,0.00018601,2]
[330552148,1719562202516,2099.6884772,0.00018601,2]
[330552149,1719562203087,182.09014196,0.00018601,2]
[330552150,1719562203499,872.26294404,0.00018601,2]
[330552151,1719562204275,486.77136543,0.000275,30]
[330552152,1719562204688,4398.80443104,0.00018601,2]
[330552153,1719562204887,1910.962219,0.00018601,2]
[330552154,1719562206174,42201.76063344,0.00018601,2]
[330552155,1719562208047,1059.24239371,0.0002184,2]
[330552156,1719562209058,565.6979086,0.00018601,2]
[330552157,1719562209201,641.96211969,0.00022932,2]
[330552158,1719562210313,621.09810598,0.00024079,2]
[330552159,1719562216125,293.20964661,0.00018601,2]
[330552160,1719562222104,20862.30425284,0.00018601,2]
[330552189,1719562231747,-156.11060049,0.00030741,7]
[330552191,1719562231756,-150.73973492,0.00030793,7]
[330552193,1719562231766,-174.21492898,0.00030899,2]
[330552195,1719562231775,-154.38291303,0.00031204,7]
[330552196,1719562231784,-160.05297473,0.00031251,4]
[330552198,1719562231793,-117.74487522,0.00031597,7]
[330552201,1719562231805,-38.47748241,0.00031597,7]
[330552203,1719562231814,-1329.606815,0.00031736,2]
[330552205,1719562231823,-156.11060049,0.00031933,7]
[330552207,1719562231833,-156.11060049,0.00032074,7]
[330552209,1719562231842,-178.03954293,0.000324,2]
[330552211,1719562231852,-2463.788435,0.000325,12]
[330552213,1719562231861,-191.098995,0.00033099,7]
[330552215,1719562231870,-191.098995,0.00033099,7]
[330552216,1719562231880,-811.893677,0.00033099,7]
[330552218,1719562231889,-811.893677,0.00033099,7]
[330552221,1719562231899,-151.0,0.00033099,7]
[330552223,1719562231909,-2501.58879502,0.00033292,60]
[330552225,1719562231918,-154.38291303,0.000334,7]
[330552226,1719562231927,-191.098995,0.00034421,7]
[330552229,1719562231937,-191.098995,0.00034421,7]
[330552231,1719562231947,-151.0,0.00034592,7]
[330552233,1719562231957,-2574.23309584,0.00034642,4]
[330552235,1719562231966,-12242.273365,0.00034662,4]
[330552236,1719562231976,-666.82294205,0.00034688,4]
[330552239,1719562231986,-1502.55424838,0.00034762,4]
[330552240,1719562231998,-159.35965211,0.00034999,4]
[330552242,1719562232007,-2710.2604516,0.00035,4]
[330552244,1719562232017,-154.85288975,0.00035259,4]
[330552247,1719562232027,-269.54035661,0.00035581,4]
[330552248,1719562232036,-659.08627786,0.00035615,2]
[330552251,1719562232046,-156.11060049,0.00035685,7]
[330552253,1719562232055,-174.21492898,0.00035899,2]
[330552255,1719562232065,-951.40503099,0.00036229,4]
[330552257,1719562232074,-156.11060049,0.00036295,7]
[330552259,1719562232083,-1316.94545097,0.00036351,4]
[330552261,1719562232093,-241.76730361,0.00037,4]
[330552263,1719562232102,-570.67502715,0.00037085,4]
[330552265,1719562232111,-156.11060049,0.00037107,7]
[330552267,1719562232120,-161.53665918,0.00037259,4]
[330552268,1719562232129,-205.8057007,0.0003726,2]
[330552271,1719562232140,-52614.17512969,0.000373,2]
[330552286,1719562236576,2200.47442605,0.00022546,2]
[330552304,1719562237729,-178.28902866,0.00034661,7]
[330552305,1719562237744,-269.54035661,0.00035581,4]
[330552306,1719562237754,-9972.31267893,0.000373,2]
[330552307,1719562237766,-4109.16328342,0.000373,2]
[330552318,1719562239864,-3224.0,0.000373,2]
[330552319,1719562239877,-29199.58894643,0.000373,2]
[330552320,1719562239890,-419.84463997,0.000373,2]
[330552321,1719562239903,-304.71368244,0.000373,2]
[330552338,1719562242938,-1926.955983,0.000373,2]
[330552339,1719562242949,-1206.4336295,0.000373,2]
[330552340,1719562242960,-12560.0,0.000373,2]
[330552341,1719562242980,-505.51884002,0.000373,2]
[330552373,1719562246458,-2259.26515726,0.00035943,2]
[330552374,1719562246470,-8721.27634784,0.00035943,2]
[330552375,1719562246478,-11278.91128451,0.000373,2]
[330552376,1719562246506,587.7182223,0.00022546,2]
[330552380,1719562253509,2825.49865465,0.00022546,2]
[330552381,1719562261184,12497.95912736,0.00022546,2]
[330552382,1719562263906,321.80433372,0.00027328,2]
[330552384,1719562282316,346.92770969,0.00027328,2]
[330552385,1719562286829,200.61503685,0.00027328,2]
[330552386,1719562301577,200.61503685,0.00027328,2]
[330552387,1719562337164,156.11060051,0.00028128,2]
[330552388,1719562342698,154.22797203,0.00030355,7]
[330552393,1719563154876,10680.02295697,0.00014998,2]
[330552394,1719563237171,-300.0,0.00016254,2]
[330552395,1719563237192,-300.0,0.00016254,2]
[330552396,1719563237214,-5332.58029399,0.00016255,2]
[330552397,1719563241153,-7795.97238302,0.00016255,2]
[330552398,1719563251255,2831.7809937,0.00014998,2]
[330552399,1719563271391,1748.52304575,0.00014998,2]
[330552400,1719563312017,8080.67217566,0.00014998,2]
[330552402,1719563350133,-300.0,0.00016254,2]
[330552403,1719563350154,-12941.01807441,0.00016255,2]
[330552404,1719563350172,-154.97352877,0.00016255,2]
[330552405,1719563350192,-154.99577588,0.00018179,2]
[330552406,1719563350211,-238.42905543,0.00018179,2]
[330552407,1719563350230,-3000.0,0.00018842,2]
[330552408,1719563350249,-2319.1706397,0.00019118,2]
[330552409,1719563350269,-500.0,0.00019178,2]
[330552410,1719563350289,-500.0,0.00019178,2]
[330552411,1719563350309,-500.0,0.00019178,2]
[330552412,1719563350329,-500.0,0.00019178,2]
[330552413,1719563350348,-500.0,0.00019178,2]
[330552414,1719563350368,-500.0,0.00019178,2]
[330552415,1719563350388,-500.0,0.00019178,2]
[330552416,1719563350408,-500.0,0.00019178,2]
[330552417,1719563350429,-500.0,0.00019178,2]
[330552418,1719563350450,-185.58563525,0.00019178,2]
[330552419,1719563350470,-500.0,0.00019178,2]
[330552420,1719563350489,-163.738245,0.00019178,2]
[330552421,1719563350508,-768.730675,0.000193,2]
[330552422,1719563350532,-389.9277176,0.00020899,2]
[330552423,1719563350551,-161.2064,0.00021096,2]
[330552424,1719563350572,-166.6399309,0.00021096,2]
[330552425,1719563350592,-168.574889,0.00021918,2]
[330552426,1719563350612,-16990.545622,0.00022942,2]
[330552427,1719563350633,-24900.0,0.00023029,2]
[330552428,1719563350655,-3075.6789159,0.00023453,2]
[330552429,1719563350675,-676.7838976,0.00023868,2]
[330552430,1719563350708,-168.574889,0.00024482,2]
[330552431,1719563350730,-1004.36991051,0.00024666,2]
[330552432,1719563350750,-639.21849553,0.000259,2]
[330552433,1719563350773,-7012.02651975,0.00025988,7]
[330552434,1719563350964,-10358.8471633,0.00025998,2]
[330552435,1719563350988,-2375.72247455,0.00027185,3]
[330552436,1719563368105,-150.0,0.00023888,2]
[330552437,1719563388744,450.0,0.00026574,2]
[330552517,1719563432494,-1011.77011992,0.00026574,2]
[330552519,1719563432503,-300.0,0.00027184,2]
[330552521,1719563432513,-817.59965437,0.00027184,2]
[330552523,1719563432523,-19432.44734925,0.00027185,3]
[330552525,1719563432532,-154.82195475,0.00027194,2]
[330552527,1719563432545,-154.87144774,0.00027399,2]
[330552529,1719563432557,-676.78389756,0.00027462,2]
[330552531,1719563432567,-161.2064,0.00027913,2]
[330552533,1719563432576,-156.11060051,0.00028103,2]
[330552535,1719563432587,-159.50123805,0.00028125,2]
[330552537,1719563432597,-10561.05054811,0.00028327,2]
[330552539,1719563432607,-150.0,0.00028888,2]
[330552541,1719563432618,-768.730675,0.0002895,2]
[330552543,1719563432628,-150.83555258,0.00029003,2]
[330552545,1719563432638,-200.61503685,0.00029772,2]
[330552548,1719563432648,-1000.0,0.00029878,2]
[330552550,1719563432657,-1010.17413742,0.0003,5]
[330552551,1719563432666,-150.83555258,0.00030334,7]
[330552553,1719563432675,-984.073874,0.000308,120]
[330552555,1719563432685,-154.22797203,0.00030816,7]
[330552557,1719563432694,-154.22797203,0.00030874,7]
[330552559,1719563432704,-676.78389756,0.00031056,2]
[330552562,1719563432714,-150.83555258,0.00031792,7]
[330552563,1719563432722,-1000.0,0.000318,120]
[330552565,1719563432731,-156.11060051,0.00032203,7]
[330552567,1719563432741,-6235.4381059,0.0003221,4]
[330554021,1719564430141,-465.979049,0.00018761,2]
[330554022,1719564434129,-1646.57684401,0.00018761,2]
[330554025,1719564546119,-164.23980904,0.00018661,2]
[330554026,1719564546146,-154.82195475,0.00018761,2]
[330554027,1719564546174,-1647.16795346,0.00018761,2]
[330554028,1719564546202,-2799.22640624,0.00019164,2]
[330554029,1719564546232,-161.2064,0.00021096,2]
[330554030,1719564546260,-154.76011981,0.00022,2]
[330554031,1719564546287,-828.45793298,0.0002274,2]
[330554032,1719564546315,-1005.2631448,0.00023688,2]
[330554033,1719564546343,-300.0,0.000238,2]
[330554034,1719564546369,-3000.0,0.00023801,2]
[330554035,1719564546398,-573.88286459,0.00024541,2]
[330554036,1719564546425,-576.1761817,0.00024541,2]
[330554037,1719564546451,-11718.9294804,0.00024542,2]
[330554038,1719564546478,-420.0,0.0002618,2]
[330554039,1719564546507,-1297.03727279,0.00026419,2]
[330554040,1719564546543,-6347.14775912,0.00026419,2]
[330554041,1719564552949,-3769.18827951,0.00018761,2]
[330554042,1719564552969,-403.4223674,0.00022579,2]
[330554043,1719564552991,-624.09495309,0.00026419,2]
[330554138,1719564638452,-4720.13699636,0.00025769,2]
[330554139,1719564638462,-16176.83939958,0.00025869,2]
[330554140,1719564638472,-300.0,0.00026418,2]
[330554141,1719564638482,-300.0,0.00026418,2]
[330554142,1719564638492,-16631.720015,0.00026419,2]
[330554143,1719564638501,-620.43038332,0.00026906,2]
[330554144,1719564638511,-237.23152103,0.00027184,2]
[330554145,1719564638520,-250.0,0.00027199,2]
[330554146,1719564638529,-2094.6721062,0.00027292,2]
[330554147,1719564638539,-1000.0,0.0002737,2]
[330554148,1719564638549,-628.60766537,0.00028511,2]
[330554149,1719564638559,-159.0,0.00028578,2]
[330554150,1719564638569,-161.2064,0.00028822,2]
[330554151,1719564638578,-159.50123805,0.00030237,7]
[330554152,1719564638588,-150.83555258,0.00030404,7]
[330554153,1719564638598,-270.71355904,0.00030868,2]
[330554154,1719564638607,-37491.31421496,0.00030966,2]
[330554155,1719564638617,-3272.03961136,0.00030967,7]
[330554156,1719564638627,-3506.01325988,0.00030968,7]
[330554157,1719564638636,-5000.0,0.00030968,31]
[330554158,1719564638645,-63965.98955311,0.00030968,7]
[330554159,1719564638655,-154.22797202,0.0003107,7]
[330554160,1719564638664,-150.83555258,0.00031558,7]
[330554161,1719564638674,-154.85288667,0.00032022,4]
[330554162,1719564638810,-196.50952523,0.00032022,4]
[330554163,1719564638821,-22367.1567649,0.000322,3]
[330554164,1719564638831,-270.71355902,0.00032624,2]
[330554165,1719564638840,-2000.0,0.000328,120]
[330554166,1719564638849,-156.11060053,0.00033159,7]
[330554167,1719564638859,-150.83555258,0.00033187,7]
[330554168,1719564638868,-150.83555258,0.0003422,7]
[330554169,1719564638878,-270.71355902,0.00034379,2]
[330554170,1719564638888,-359.14735691,0.00034462,4]
[330554171,1719564638897,-154.85288975,0.00034462,4]
[330554172,1719564638907,-1602.15011464,0.00034467,4]
[330554173,1719564638924,-1042.76936513,0.00034491,4]
[330554174,1719564638934,-155.04591088,0.0003455,4]
[330554175,1719564638944,-155.00138827,0.00034555,4]
[330554176,1719564638953,-154.97340122,0.00034555,4]
[330554177,1719564638963,-154.89814171,0.0003456,4]
[330554178,1719564638972,-154.82195475,0.00034562,4]
[330554179,1719564638981,-154.88382167,0.00034567,4]
[330554180,1719564638992,-393.86909153,0.00034574,2]
[330554181,1719564639001,-404.03407367,0.00034574,4]
[330554182,1719564639011,-159.62800801,0.0003458,4]
[330554183,1719564639021,-154.82195475,0.00034585,4]
[330554184,1719564639030,-154.82195475,0.00034592,4]
[330554185,1719564639040,-154.82195475,0.00034592,4]
[330554186,1719564639050,-153.0,0.00034625,2]
[330554187,1719564639060,-153.0,0.00034625,2]
[330554188,1719564639069,-153.0,0.00034625,2]
[330554189,1719564639078,-153.0,0.00034625,2]
[330554190,1719564639088,-153.0,0.00034625,2]
[330554191,1719564639098,-153.0,0.00034625,2]
[330554192,1719564639108,-153.0,0.00034625,2]
[330554193,1719564639118,-153.0,0.00034625,2]
[330554194,1719564639128,-153.0,0.00034625,2]
[330554195,1719564639138,-153.0,0.00034625,2]
[330554196,1719564639148,-153.0,0.00034625,2]
[330554197,1719564639158,-153.0,0.00034625,2]
[330554198,1719564639167,-153.0,0.00034625,2]
[330554199,1719564639177,-153.0,0.00034625,2]
[330554200,1719564639187,-153.0,0.00034625,2]
[330554201,1719564639197,-153.0,0.00034625,2]
[330554202,1719564639206,-153.0,0.00034625,2]
[330554203,1719564639216,-153.0,0.00034625,2]
[330554204,1719564639225,-153.0,0.00034625,2]
[330554205,1719564639235,-153.0,0.00034625,2]
[330554206,1719564639245,-153.0,0.00034625,2]
[330554207,1719564639254,-153.0,0.00034625,2]
[330554208,1719564639263,-153.0,0.00034625,2]
[330554209,1719564639273,-153.0,0.00034625,2]
[330554210,1719564639282,-153.0,0.00034625,2]
[330554211,1719564639292,-153.0,0.00034625,2]
[330554212,1719564639301,-153.0,0.00034625,2]
[330554213,1719564639311,-153.0,0.00034625,2]
[330554214,1719564639320,-153.0,0.00034625,2]
[330554215,1719564639330,-153.0,0.00034625,2]
[330554216,1719564639339,-153.0,0.00034625,2]
[330554217,1719564639349,-153.0,0.00034625,2]
[330554218,1719564639359,-153.0,0.00034625,2]
[330554219,1719564639369,-153.0,0.00034625,2]
[330554220,1719564639378,-153.0,0.00034625,2]
[330554221,1719564639388,-153.0,0.00034625,2]
[330554222,1719564639398,-153.0,0.00034625,2]
[330554223,1719564639408,-153.0,0.00034625,2]
[330554224,1719564639418,-153.0,0.00034625,2]
[330554225,1719564639430,-153.0,0.00034625,2]
[330554226,1719564639441,-153.0,0.00034625,2]
[330554227,1719564639451,-153.0,0.00034625,2]
[330554228,1719564639461,-153.0,0.00034625,2]
[330554229,1719564639470,-153.0,0.00034625,2]
[330554230,1719564639481,-153.0,0.00034625,2]
[330554231,1719564639491,-153.0,0.00034625,2]
[330554232,1719564639502,-153.0,0.00034625,2]
[330554233,1719564639512,-153.0,0.00034625,2]
[330554234,1719564639522,-1979.50380484,0.0003463,2]
[330554235,1719564639532,-154.22797202,0.00034805,7]
[330554236,1719564639542,-746.81527298,0.00034811,14]
[330554237,1719564639553,-2054.46626808,0.00034999,4]
[330554238,1719564639562,-1168.47318534,0.00035,4]
[330554239,1719564639574,-154.22797202,0.00035088,7]
[330554240,1719564639583,-150.83555258,0.00035164,7]
[330554241,1719564639594,-168.53777677,0.00035615,2]
[330554242,1719564639604,-205.8057007,0.0003589,2]
[330554243,1719564639614,-304.32142107,0.00035999,2]
[330554244,1719564639623,-270.71355902,0.00036135,2]
[330554245,1719564639634,-205.3347715,0.00036329,2]
[330554246,1719564639643,-205.8950775,0.00036438,2]
[330554247,1719564639653,-153.0,0.00036438,2]
[330554248,1719564639662,-166.9363593,0.00036438,2]
[330554249,1719564639672,-153.0,0.00036438,2]
[330554250,1719564639681,-161.2064,0.00036548,2]
[330554251,1719564639691,-267.19433174,0.00037085,4]
[330554252,1719564639700,-772.0,0.0003711,2]
[330554253,1719564639710,-127258.36137109,0.000373,2]
[330554254,1719564639721,-531.731878,0.000373,31]
[330554255,1719564639730,-208.86720996,0.00037357,4]
[330554256,1719564639739,-1490.91716075,0.00037523,4]
[330554257,1719564639749,-1626.7941959,0.00037523,4]
[330554258,1719564639758,-1854.54250399,0.00037523,4]
[330554259,1719564639768,-767.39134561,0.00037587,4]
[330554260,1719564639778,-812.22332003,0.00037587,4]
[330554261,1719564639787,-154.82195475,0.00037807,4]
[330554262,1719564639797,-153.0,0.00037808,2]
[330554263,1719564639807,-270.71355902,0.0003789,2]
[330554264,1719564639816,-8157.44032084,0.0003799,5]
[330554265,1719564639826,-151.0,0.0003799,7]
[330554266,1719564639839,-151.0,0.00037999,7]
[330554267,1719564639849,-1000.0,0.00038,38]
[330554268,1719564639860,-628.1925579,0.00038,120]
[330554269,1719564639870,-159.50123805,0.00038064,7]
[330554270,1719564639880,-159.50123807,0.00038144,7]
[330554271,1719564639889,-1010.54727766,0.00038245,2]
[330554568,1719564647114,-199.7558762,0.0002532,2]
[330554569,1719564647123,-499.9888163,0.0002532,2]
[330554570,1719564647133,-150.0,0.000259,2]
[330554571,1719564647142,-362.94946863,0.00026448,2]
[330554572,1719564647151,-1917.39,0.00030958,3]
[330554573,1719564647161,-154.82195475,0.0003456,4]
[330554574,1719564647170,-211.30087127,0.00034562,4]
[330554575,1719564647179,-989.45272234,0.00038245,2]
[330554576,1719564647188,-151.0,0.00038246,7]
[330554577,1719564647197,-151.0,0.00038254,7]
[330554578,1719564647206,-151.0,0.00038254,7]
[330554579,1719564647215,-21677.11568613,0.00038254,4]
[330554716,1719565633129,-276.78274469,0.00020996,2]
[330554717,1719565633152,-161.2064,0.00021096,2]
[330554718,1719565633171,-1112.45301443,0.00026513,2]
[330554719,1719565636125,-13.99590444,0.00026513,2]
[330554720,1719565636144,-1918.44450089,0.00026638,2]
[330554723,1719565763105,-321.57741171,0.00026638,2]
[330554724,1719565763125,-1081.55549911,0.00026638,2]
[330554725,1719565763146,-251.1294203,0.00027077,2]